[Event "*** Titled Tuesday 3|2 Blitz"]
[Site "Chess.com"]
[Date "2016.05.03"]
[Round "5"]
[White "cool64chess"]
[Black "Hikaru"]
[Result "0-1"]
[WhiteElo "2216"]
[BlackElo "2858"]
[TimeControl "180+2"]
[EndTime "12:05:38 PDT"]
[Termination "Hikaru won by resignation"]

1. d4 {[%clk 0:03:01.9]} 1... b6 {[%clk 0:03:00]} 2. Nf3 {[%clk 0:03:01.4]} 2...
Bb7 {[%clk 0:03:01.9]} 3. Nbd2 {[%clk 0:03:02.5]} 3... Nf6 {[%clk 0:03:03.2]} 4.
g3 {[%clk 0:03:03.3]} 4... g6 {[%clk 0:03:04.2]} 5. Bg2 {[%clk 0:03:04.1]} 5...
Bg7 {[%clk 0:03:06.1]} 6. O-O {[%clk 0:03:04]} 6... O-O {[%clk 0:03:07.7]} 7. b3
{[%clk 0:03:04.8]} 7... c5 {[%clk 0:03:08.3]} 8. Bb2 {[%clk 0:03:03.8]} 8... Qc7
{[%clk 0:03:06.3]} 9. dxc5 {[%clk 0:03:02.8]} 9... bxc5 {[%clk 0:03:06.9]} 10.
c3 {[%clk 0:03:01.6]} 10... d5 {[%clk 0:03:07.4]} 11. Qc2 {[%clk 0:03:00]} 11...
e5 {[%clk 0:03:08.4]} 12. e3 {[%clk 0:02:25.4]} 12... Nc6 {[%clk 0:03:06.4]} 13.
Rfd1 {[%clk 0:02:23]} 13... Rad8 {[%clk 0:03:04.5]} 14. a3 {[%clk 0:02:22.2]}
14... Rfe8 {[%clk 0:03:03.2]} 15. e4 {[%clk 0:02:14.5]} 15... Nxe4 {[%clk
0:02:58.7]} 16. Nxe4 {[%clk 0:02:11.4]} 16... dxe4 {[%clk 0:03:00.6]} 17. Qxe4
{[%clk 0:01:40.7]} 17... Nd4 {[%clk 0:03:00.9]} 18. Qe3 {[%clk 0:01:08.5]} 18...
Nc2 {[%clk 0:02:53.3]} 19. Qe2 {[%clk 0:01:08.3]} 19... Nxa1 {[%clk 0:02:54.1]}
20. Rxa1 {[%clk 0:01:10.2]} 20... e4 {[%clk 0:02:55.2]} 21. Nd2 {[%clk
0:01:09.8]} 21... f5 {[%clk 0:02:52]} 22. Nc4 {[%clk 0:01:09.6]} 22... Bd5
{[%clk 0:02:52.7]} 23. Ne3 {[%clk 0:00:58.8]} 23... Bf7 {[%clk 0:02:50.9]} 24.
c4 {[%clk 0:00:57.1]} 24... Bd4 {[%clk 0:02:51.1]} 25. Rd1 {[%clk 0:00:38]}
25... Qe5 {[%clk 0:02:20.9]} 26. Bxd4 {[%clk 0:00:29.2]} 26... cxd4 {[%clk
0:02:20]} 27. Nf1 {[%clk 0:00:28.9]} 27... d3 {[%clk 0:02:15.8]} 28. Qe3 {[%clk
0:00:28.8]} 28... Qd4 {[%clk 0:02:16.6]} 29. Nd2 {[%clk 0:00:22.9]} 29... Qxe3
{[%clk 0:02:17.1]} 30. fxe3 {[%clk 0:00:24.8]} 30... a5 {[%clk 0:02:16.5]} 31.
a4 {[%clk 0:00:22.6]} 31... h5 {[%clk 0:02:17]} 32. Kf2 {[%clk 0:00:20.3]} 32...
Kg7 {[%clk 0:02:15.1]} 33. Rc1 {[%clk 0:00:19.1]} 33... Rb8 {[%clk 0:02:15.4]}
34. Rc3 {[%clk 0:00:20]} 34... Kf6 {[%clk 0:01:58.4]} 35. Ke1 {[%clk 0:00:19.9]}
35... Ke7 {[%clk 0:01:53.2]} 36. Kd1 {[%clk 0:00:20.8]} 36... Kd6 {[%clk
0:01:53.8]} 37. Kc1 {[%clk 0:00:21.8]} 37... Kc5 {[%clk 0:01:55.4]} 38. Kb2
{[%clk 0:00:23]} 38... Be6 {[%clk 0:01:57]} 39. Rc1 {[%clk 0:00:22.2]} 39... Bd7
{[%clk 0:01:58.1]} 40. Kc3 {[%clk 0:00:23.2]} 40... Rb4 {[%clk 0:01:58]} 41. Ra1
{[%clk 0:00:23.5]} 41... Bc6 {[%clk 0:01:57.6]} 42. Ra3 {[%clk 0:00:24.4]} 42...
Rb7 {[%clk 0:01:56.1]} 43. Ra1 {[%clk 0:00:24.3]} 43... Rh7 {[%clk 0:01:54.1]}
44. h4 {[%clk 0:00:23.5]} 44... Rb7 {[%clk 0:01:54.7]} 45. Bh1 {[%clk
0:00:24.2]} 45... Rg8 {[%clk 0:01:55.4]} 46. Rf1 {[%clk 0:00:23.5]} 46... Kd6
{[%clk 0:01:55.6]} 47. Bg2 {[%clk 0:00:24.6]} 47... Ke5 {[%clk 0:01:56.3]} 48.
Bh3 {[%clk 0:00:25.5]} 48... Bd7 {[%clk 0:01:57.2]} 49. Rb1 {[%clk 0:00:22.3]}
49... Be6 {[%clk 0:01:57.4]} 50. Bf1 {[%clk 0:00:22.1]} 50... Rbb8 {[%clk
0:01:51.2]} 51. b4 {[%clk 0:00:18.6]} 51... axb4+ {[%clk 0:01:51.7]} 52. Rxb4
{[%clk 0:00:20.5]} 52... Rxb4 {[%clk 0:01:53.1]} 53. Kxb4 {[%clk 0:00:22.4]}
53... Rb8+ {[%clk 0:01:54.2]} 54. Kc3 {[%clk 0:00:23.4]} 54... Bd7 {[%clk
0:01:48.5]} 55. a5 {[%clk 0:00:23.5]} 55... Kd6 {[%clk 0:01:49.2]} 56. Nb3
{[%clk 0:00:22.9]} 56... Rxb3+ {[%clk 0:01:39.6]} 57. Kxb3 {[%clk 0:00:22.1]}
57... Kc5 {[%clk 0:01:41.5]} 58. Kc3 {[%clk 0:00:22.7]} 58... Bc8 {[%clk
0:01:41.1]} 59. Bh3 {[%clk 0:00:18.7]} 59... Ba6 {[%clk 0:01:39.3]} 60. Bg2
{[%clk 0:00:20.2]} 60... Bxc4 {[%clk 0:01:38.9]} 61. Bh3 {[%clk 0:00:20.8]}
61... Ba6 {[%clk 0:01:39.8]} 62. Bg2 {[%clk 0:00:22.1]} 62... Kb5 {[%clk
0:01:40.2]} 63. Bf1 {[%clk 0:00:22.9]} 63... Kxa5 {[%clk 0:01:41]} 64. Bg2
{[%clk 0:00:23.1]} 64... Ka4 {[%clk 0:01:42.2]} 65. Bh3 {[%clk 0:00:24.1]} 65...
Ka3 {[%clk 0:01:43.4]} 66. Bg2 {[%clk 0:00:25.2]} 66... Ka2 {[%clk 0:01:44.8]}
67. Bh3 {[%clk 0:00:25.3]} 67... Ka3 {[%clk 0:01:44.7]} 68. Bg2 {[%clk
0:00:25.9]} 68... Ka4 {[%clk 0:01:41.9]} 69. Bh3 {[%clk 0:00:27.2]} 69... Kb5
{[%clk 0:01:43.6]} 70. Bf1 {[%clk 0:00:28.4]} 70... Kc5 {[%clk 0:01:45.2]} 71.
Bh3 {[%clk 0:00:29]} 71... Kd5 {[%clk 0:01:46.8]} 72. Bg2 {[%clk 0:00:30]} 72...
Ke5 {[%clk 0:01:48.5]} 73. Bh3 {[%clk 0:00:30.3]} 73... Bc8 {[%clk 0:01:50.1]}
74. Kd2 {[%clk 0:00:30.4]} 74... Kf6 {[%clk 0:01:50.7]} 75. Kc3 {[%clk
0:00:30.7]} 75... Be6 {[%clk 0:01:09.4]} 76. Bf1 {[%clk 0:00:23]} 76... g5
{[%clk 0:01:10.6]} 77. Bg2 {[%clk 0:00:23.7]} 77... gxh4 {[%clk 0:00:55.1]} 78.
gxh4 {[%clk 0:00:25.6]} 78... Ke5 {[%clk 0:00:56.7]} 79. Bh3 {[%clk 0:00:24.3]}
79... Bd5 {[%clk 0:00:56.5]} 80. Kd2 {[%clk 0:00:24.1]} 80... Bf7 {[%clk
0:00:57.4]} 81. Bf1 {[%clk 0:00:24.9]} 81... Bg6 {[%clk 0:00:56.2]} 82. Bh3
{[%clk 0:00:26]} 82... f4 {[%clk 0:00:56.9]} 83. Bf1 {[%clk 0:00:27]} 83... f3
{[%clk 0:00:54.2]} 84. Bh3 {[%clk 0:00:27.6]} 84... f2 {[%clk 0:00:38.1]} 85.
Bg2 {[%clk 0:00:26.4]} 85... Bf5 {[%clk 0:00:38.5]} 86. Bf1 {[%clk 0:00:27.5]}
86... Bg4 {[%clk 0:00:25.1]} 87. Bg2 {[%clk 0:00:28]} 87... Be2 {[%clk
0:00:23.1]} 0-1

[Event "*** Titled Tuesday 3|2 Blitz"]
[Site "Chess.com"]
[Date "2016.05.03"]
[Round "6"]
[White "Badouuu"]
[Black "sandropozo"]
[Result "0-1"]
[WhiteElo "1998"]
[BlackElo "2275"]
[TimeControl "180+2"]
[EndTime "12:10:09 PDT"]
[Termination "sandropozo won by checkmate"]

1. e4 {[%clk 0:02:57.5]} 1... e6 {[%clk 0:03:00.6]} 2. d4 {[%clk 0:02:57.6]}
2... d5 {[%clk 0:03:01.5]} 3. Nd2 {[%clk 0:02:59.2]} 3... Be7 {[%clk 0:03:00.7]}
4. Bd3 {[%clk 0:02:56.9]} 4... c5 {[%clk 0:03:00.2]} 5. exd5 {[%clk 0:02:57.2]}
5... exd5 {[%clk 0:03:00.1]} 6. dxc5 {[%clk 0:02:57.7]} 6... Bxc5 {[%clk
0:03:00.2]} 7. Qe2+ {[%clk 0:02:52.7]} 7... Ne7 {[%clk 0:02:53.7]} 8. Ngf3
{[%clk 0:02:53]} 8... O-O {[%clk 0:02:52.8]} 9. O-O {[%clk 0:02:53.8]} 9... Nbc6
{[%clk 0:02:54.3]} 10. h3 {[%clk 0:02:54.5]} 10... Re8 {[%clk 0:02:49.4]} 11.
Nb3 {[%clk 0:02:50.2]} 11... Ng6 {[%clk 0:02:38.9]} 12. Qd1 {[%clk 0:02:50.5]}
12... Bb6 {[%clk 0:02:39.3]} 13. Bg5 {[%clk 0:02:48.4]} 13... Qd6 {[%clk
0:02:40.3]} 14. Qd2 {[%clk 0:02:46.5]} 14... Bxh3 {[%clk 0:02:33.2]} 15. gxh3
{[%clk 0:02:45.3]} 15... Qg3+ {[%clk 0:02:31.6]} 16. Kh1 {[%clk 0:02:42.3]}
16... Qxf3+ {[%clk 0:02:32.6]} 17. Kh2 {[%clk 0:02:43.6]} 17... Bc7+ {[%clk
0:02:29.4]} 18. Kg1 {[%clk 0:02:42]} 18... Qxh3 {[%clk 0:02:10.1]} 19. f4 {[%clk
0:02:42.6]} 19... Bb6+ {[%clk 0:02:08.9]} 20. Rf2 {[%clk 0:02:41.6]} 20... Re3
{[%clk 0:02:05.3]} 21. Rg2 {[%clk 0:02:28.2]} 21... Re1# {[%clk 0:02:01.7]} 0-1

[Event "*** Titled Tuesday 3|2 Blitz"]
[Site "Chess.com"]
[Date "2016.05.03"]
[Round "6"]
[White "Kawhi_Leonard2"]
[Black "BahadirOzen"]
[Result "1/2-1/2"]
[WhiteElo "2076"]
[BlackElo "2493"]
[TimeControl "180+2"]
[EndTime "12:10:28 PDT"]
[Termination "Game drawn by agreement"]

1. e4 {[%clk 0:03:01.9]} 1... d6 {[%clk 0:03:01.3]} 2. d4 {[%clk 0:03:01.5]}
2... Nf6 {[%clk 0:03:02.9]} 3. Nc3 {[%clk 0:03:01]} 3... Nbd7 {[%clk 0:03:04.6]}
4. Nf3 {[%clk 0:03:01.8]} 4... e5 {[%clk 0:03:06.1]} 5. Bc4 {[%clk 0:03:01.3]}
5... Be7 {[%clk 0:03:07.4]} 6. O-O {[%clk 0:03:00.1]} 6... O-O {[%clk
0:03:08.6]} 7. a4 {[%clk 0:02:58.2]} 7... a5 {[%clk 0:03:09.3]} 8. b3 {[%clk
0:02:57.3]} 8... c6 {[%clk 0:03:09.2]} 9. Ba3 {[%clk 0:02:53.8]} 9... Qc7 {[%clk
0:02:12.3]} 10. Qd2 {[%clk 0:02:26.8]} 10... exd4 {[%clk 0:02:03.1]} 11. Nxd4
{[%clk 0:02:13.7]} 11... Nb6 {[%clk 0:02:03.5]} 12. Be2 {[%clk 0:02:12.2]} 12...
d5 {[%clk 0:02:03.9]} 13. Bxe7 {[%clk 0:01:51.8]} 13... Qxe7 {[%clk 0:02:05.8]}
14. exd5 {[%clk 0:01:52.7]} 14... Nbxd5 {[%clk 0:02:06.3]} 15. Nxd5 {[%clk
0:01:53.4]} 15... Nxd5 {[%clk 0:02:08.2]} 16. Bf3 {[%clk 0:01:53.1]} 16... Rd8
{[%clk 0:02:02.8]} 17. Rfe1 {[%clk 0:01:51.8]} 17... Qf6 {[%clk 0:02:03.6]}
1/2-1/2

[Event "*** Titled Tuesday 3|2 Blitz"]
[Site "Chess.com"]
[Date "2016.05.03"]
[Round "6"]
[White "exoticprincess"]
[Black "ShimanovAlex"]
[Result "1/2-1/2"]
[WhiteElo "2792"]
[BlackElo "2656"]
[TimeControl "180+2"]
[EndTime "12:11:40 PDT"]
[Termination "Game drawn by repetition"]

1. b3 {[%clk 0:03:01.9]} 1... Nf6 {[%clk 0:02:58.9]} 2. Bb2 {[%clk 0:03:03.2]}
2... g6 {[%clk 0:03:00.2]} 3. e3 {[%clk 0:03:03.9]} 3... Bg7 {[%clk 0:03:01.4]}
4. Nc3 {[%clk 0:03:05.5]} 4... O-O {[%clk 0:03:01.7]} 5. d4 {[%clk 0:03:06.9]}
5... d6 {[%clk 0:02:54.8]} 6. Qd2 {[%clk 0:03:06.8]} 6... c5 {[%clk 0:02:55.6]}
7. O-O-O {[%clk 0:03:05.9]} 7... cxd4 {[%clk 0:02:56.4]} 8. exd4 {[%clk
0:03:07.3]} 8... Nc6 {[%clk 0:02:58.2]} 9. f3 {[%clk 0:03:06.1]} 9... e5 {[%clk
0:02:52.1]} 10. dxe5 {[%clk 0:03:03.1]} 10... dxe5 {[%clk 0:02:53]} 11. Qxd8
{[%clk 0:03:04.1]} 11... Rxd8 {[%clk 0:02:53.8]} 12. Rxd8+ {[%clk 0:03:04.8]}
12... Nxd8 {[%clk 0:02:55.5]} 13. Bc4 {[%clk 0:03:00.6]} 13... Be6 {[%clk
0:02:56.7]} 14. Bxe6 {[%clk 0:02:58.6]} 14... Nxe6 {[%clk 0:02:58.6]} 15. Nge2
{[%clk 0:02:59.8]} 15... Rd8 {[%clk 0:02:56.5]} 16. Rd1 {[%clk 0:03:00.6]} 16...
Bh6+ {[%clk 0:02:57.1]} 17. Kb1 {[%clk 0:03:00.6]} 17... Rxd1+ {[%clk
0:02:57.8]} 18. Nxd1 {[%clk 0:03:02.3]} 18... Nd7 {[%clk 0:02:59]} 19. c4 {[%clk
0:03:02.1]} 19... f5 {[%clk 0:02:56]} 20. Ndc3 {[%clk 0:02:59.6]} 20... Nc7
{[%clk 0:02:55]} 21. Bc1 {[%clk 0:03:00.3]} 21... Bxc1 {[%clk 0:02:52.2]} 22.
Kxc1 {[%clk 0:03:01.3]} 22... Kf7 {[%clk 0:02:53.8]} 23. Kd2 {[%clk 0:02:59.6]}
23... Ke6 {[%clk 0:02:54.8]} 24. b4 {[%clk 0:02:53.9]} 24... Nf6 {[%clk
0:02:46.5]} 25. Kd3 {[%clk 0:02:51.1]} 25... g5 {[%clk 0:02:47.2]} 26. a4 {[%clk
0:02:48.1]} 26... h5 {[%clk 0:02:44.3]} 27. Nb5 {[%clk 0:02:43.5]} 27... Nxb5
{[%clk 0:02:44.4]} 28. axb5 {[%clk 0:02:45.1]} 28... h4 {[%clk 0:02:33.5]} 29.
Nc3 {[%clk 0:02:45.6]} 29... g4 {[%clk 0:02:32.5]} 30. Ke2 {[%clk 0:02:45]}
30... g3 {[%clk 0:02:26.9]} 31. hxg3 {[%clk 0:02:42.5]} 31... hxg3 {[%clk
0:02:28.8]} 32. Kd3 {[%clk 0:02:37.1]} 32... Nh5 {[%clk 0:02:26]} 33. Nd5 {[%clk
0:02:34.8]} 33... Kd6 {[%clk 0:02:20.2]} 34. Ke3 {[%clk 0:02:35.6]} 34... Ng7
{[%clk 0:01:45]} 35. Nc3 {[%clk 0:02:36]} 35... Nh5 {[%clk 0:01:43.3]} 36. Nd5
{[%clk 0:02:30]} 36... Ng7 {[%clk 0:01:43.3]} 37. Nc3 {[%clk 0:02:27.2]} 37...
Nh5 {[%clk 0:01:43.8]} 38. Nd5 {[%clk 0:02:28.2]} 1/2-1/2

[Event "*** Titled Tuesday 3|2 Blitz"]
[Site "Chess.com"]
[Date "2016.05.03"]
[Round "6"]
[White "Pomoc"]
[Black "Winehouse83"]
[Result "0-1"]
[WhiteElo "2085"]
[BlackElo "2365"]
[TimeControl "180+2"]
[EndTime "12:13:36 PDT"]
[Termination "Winehouse83 won by resignation"]

1. e4 {[%clk 0:03:01.9]} 1... e5 {[%clk 0:02:59.9]} 2. Nf3 {[%clk 0:03:02.3]}
2... Nc6 {[%clk 0:02:59.8]} 3. Nc3 {[%clk 0:02:59.5]} 3... Nf6 {[%clk
0:02:59.8]} 4. d4 {[%clk 0:02:59.5]} 4... exd4 {[%clk 0:03:00]} 5. Nxd4 {[%clk
0:03:01.4]} 5... Bb4 {[%clk 0:03:00.6]} 6. Nxc6 {[%clk 0:03:02.4]} 6... bxc6
{[%clk 0:03:02.5]} 7. Bd3 {[%clk 0:03:03.5]} 7... d5 {[%clk 0:03:02.9]} 8. exd5
{[%clk 0:03:05.4]} 8... cxd5 {[%clk 0:03:04.6]} 9. O-O {[%clk 0:03:06.2]} 9...
O-O {[%clk 0:03:06.2]} 10. h3 {[%clk 0:03:07.1]} 10... c6 {[%clk 0:03:01.5]} 11.
Qf3 {[%clk 0:03:06.9]} 11... h6 {[%clk 0:02:59.1]} 12. Bf4 {[%clk 0:03:05.8]}
12... Bd6 {[%clk 0:02:58.3]} 13. Ne2 {[%clk 0:03:04]} 13... Rb8 {[%clk
0:02:56.5]} 14. b3 {[%clk 0:03:04.2]} 14... Re8 {[%clk 0:02:51.8]} 15. Rfe1
{[%clk 0:03:03.9]} 15... Qc7 {[%clk 0:02:48.1]} 16. Bxd6 {[%clk 0:02:50.8]}
16... Qxd6 {[%clk 0:02:50]} 17. Nf4 {[%clk 0:02:51.2]} 17... Bd7 {[%clk
0:02:42.9]} 18. c4 {[%clk 0:02:37]} 18... d4 {[%clk 0:02:37]} 19. Nh5 {[%clk
0:01:51.7]} 19... Nxh5 {[%clk 0:02:17.5]} 20. Qxh5 {[%clk 0:01:53.6]} 20... c5
{[%clk 0:02:13]} 21. Be4 {[%clk 0:01:50.3]} 21... Re5 {[%clk 0:02:03.7]} 22. Qf3
{[%clk 0:01:41]} 22... Rbe8 {[%clk 0:02:02]} 23. Qd3 {[%clk 0:01:23.1]} 23...
Kh8 {[%clk 0:01:53.1]} 24. Kf1 {[%clk 0:01:04.8]} 24... Qe7 {[%clk 0:01:36.2]}
25. f3 {[%clk 0:00:17.8]} 25... f5 {[%clk 0:01:34.1]} 26. Re2 {[%clk 0:00:15.7]}
26... fxe4 {[%clk 0:01:33.9]} 27. fxe4 {[%clk 0:00:16.6]} 27... Rxe4 {[%clk
0:01:33.9]} 28. Rae1 {[%clk 0:00:16]} 28... Rxe2 {[%clk 0:01:32.9]} 29. Rxe2
{[%clk 0:00:15.7]} 29... Qxe2+ {[%clk 0:01:32]} 30. Qxe2 {[%clk 0:00:16.9]}
30... Rxe2 {[%clk 0:01:32.8]} 31. Kxe2 {[%clk 0:00:18]} 31... Bf5 {[%clk
0:01:32.9]} 0-1

[Event "*** Titled Tuesday 3|2 Blitz"]
[Site "Chess.com"]
[Date "2016.05.03"]
[Round "6"]
[White "Rating-Schmating"]
[Black "Schemato"]
[Result "0-1"]
[WhiteElo "2222"]
[BlackElo "2213"]
[TimeControl "180+2"]
[EndTime "12:13:50 PDT"]
[Termination "Schemato won by checkmate"]

1. e4 {[%clk 0:03:01.9]} 1... e6 {[%clk 0:02:57.5]} 2. d4 {[%clk 0:03:02.5]}
2... d5 {[%clk 0:02:58.3]} 3. Nd2 {[%clk 0:03:03]} 3... Be7 {[%clk 0:02:58]} 4.
Bd3 {[%clk 0:03:00.2]} 4... c5 {[%clk 0:02:57.7]} 5. exd5 {[%clk 0:03:00.7]}
5... Qxd5 {[%clk 0:02:53.8]} 6. Ngf3 {[%clk 0:03:01.5]} 6... cxd4 {[%clk
0:02:53.5]} 7. Bc4 {[%clk 0:03:00.3]} 7... Qd8 {[%clk 0:02:44.6]} 8. Nb3 {[%clk
0:03:00.3]} 8... Nc6 {[%clk 0:02:44.7]} 9. O-O {[%clk 0:03:00.6]} 9... Nf6
{[%clk 0:02:44.7]} 10. Nbxd4 {[%clk 0:03:00.7]} 10... Bd7 {[%clk 0:02:41.8]} 11.
Be3 {[%clk 0:02:58.4]} 11... O-O {[%clk 0:02:41.4]} 12. Nxc6 {[%clk 0:02:59.5]}
12... Bxc6 {[%clk 0:02:41.3]} 13. Nd4 {[%clk 0:03:00.6]} 13... Bd5 {[%clk
0:02:39.1]} 14. Bxd5 {[%clk 0:02:58.8]} 14... Qxd5 {[%clk 0:02:38.9]} 15. Nb3
{[%clk 0:02:56.6]} 15... Rfd8 {[%clk 0:02:37]} 16. Qe2 {[%clk 0:02:56.1]} 16...
b6 {[%clk 0:02:33.6]} 17. Rad1 {[%clk 0:02:56.1]} 17... Qb7 {[%clk 0:02:26.3]}
18. Rxd8+ {[%clk 0:02:55.1]} 18... Rxd8 {[%clk 0:02:26.3]} 19. Rd1 {[%clk
0:02:55.4]} 19... Rxd1+ {[%clk 0:02:26]} 20. Qxd1 {[%clk 0:02:56.3]} 20... Qd7
{[%clk 0:02:26.4]} 21. Qxd7 {[%clk 0:02:55.1]} 21... Nxd7 {[%clk 0:02:28.3]} 22.
Nd4 {[%clk 0:02:56.6]} 22... Bc5 {[%clk 0:02:21.8]} 23. c3 {[%clk 0:02:54.8]}
23... Kf8 {[%clk 0:02:17.1]} 24. b4 {[%clk 0:02:55.4]} 24... Bxd4 {[%clk
0:02:09.5]} 25. Bxd4 {[%clk 0:02:55.9]} 25... a6 {[%clk 0:02:09.1]} 26. a4
{[%clk 0:02:56.1]} 26... b5 {[%clk 0:02:10.1]} 27. axb5 {[%clk 0:02:57.5]} 27...
axb5 {[%clk 0:02:10.9]} 28. Kf1 {[%clk 0:02:58.8]} 28... e5 {[%clk 0:02:09.9]}
29. Ba7 {[%clk 0:02:59.4]} 29... Ke7 {[%clk 0:02:09.6]} 30. Ke2 {[%clk
0:03:00.9]} 30... Ke6 {[%clk 0:02:10.3]} 31. Kd3 {[%clk 0:03:01.9]} 31... Kd5
{[%clk 0:02:11.1]} 32. f3 {[%clk 0:03:01.4]} 32... f5 {[%clk 0:02:11]} 33. Bf2
{[%clk 0:03:00.8]} 33... Nf6 {[%clk 0:02:08.9]} 34. Bh4 {[%clk 0:03:00.6]} 34...
Ne8 {[%clk 0:02:08.5]} 35. Ke3 {[%clk 0:02:58.4]} 35... Nd6 {[%clk 0:02:07.9]}
36. Be7 {[%clk 0:02:56.9]} 36... Nc4+ {[%clk 0:02:08.1]} 37. Kd3 {[%clk
0:02:57.8]} 37... g6 {[%clk 0:02:07.8]} 38. h4 {[%clk 0:02:57.7]} 38... e4+
{[%clk 0:02:06.7]} 39. Ke2 {[%clk 0:02:53.4]} 39... Ne5 {[%clk 0:02:05.5]} 40.
Ke3 {[%clk 0:02:49.8]} 40... Nc4+ {[%clk 0:01:49.8]} 41. Kf4 {[%clk 0:02:40]}
41... e3 {[%clk 0:01:46.6]} 42. Bc5 {[%clk 0:02:40.4]} 42... e2 {[%clk
0:01:36.3]} 43. Bf2 {[%clk 0:02:41]} 43... Ne5 {[%clk 0:01:23.9]} 44. Ke3 {[%clk
0:02:38]} 44... Kc4 {[%clk 0:01:21.4]} 45. Be1 {[%clk 0:02:37.5]} 45... Nd3
{[%clk 0:01:18.9]} 46. Kxe2 {[%clk 0:02:20.1]} 46... Nxe1 {[%clk 0:01:19.6]} 47.
Kxe1 {[%clk 0:02:22]} 47... Kxc3 {[%clk 0:01:20.8]} 48. h5 {[%clk 0:02:23.6]}
48... gxh5 {[%clk 0:01:13.7]} 49. Kf2 {[%clk 0:02:24.3]} 49... Kxb4 {[%clk
0:01:14.2]} 50. Kg3 {[%clk 0:02:25.8]} 50... Kc4 {[%clk 0:01:09.7]} 51. Kf4
{[%clk 0:02:27.2]} 51... b4 {[%clk 0:01:11]} 52. Kxf5 {[%clk 0:02:28.4]} 52...
b3 {[%clk 0:01:12.1]} 53. Kg5 {[%clk 0:02:28.7]} 53... b2 {[%clk 0:01:13.1]} 54.
f4 {[%clk 0:02:30]} 54... b1=Q {[%clk 0:01:13.4]} 55. f5 {[%clk 0:02:31]} 55...
Kd5 {[%clk 0:01:12.2]} 56. Kf6 {[%clk 0:02:29.6]} 56... Qg1 {[%clk 0:01:09.8]}
57. Ke7 {[%clk 0:02:29.7]} 57... Qxg2 {[%clk 0:01:09.9]} 58. f6 {[%clk
0:02:31.3]} 58... Qg5 {[%clk 0:01:09.3]} 59. Ke8 {[%clk 0:02:32.4]} 59... Qxf6
{[%clk 0:01:08.4]} 60. Kd7 {[%clk 0:02:33.8]} 60... Qf7+ {[%clk 0:01:09.3]} 61.
Kc8 {[%clk 0:02:35.1]} 61... Kc6 {[%clk 0:01:10]} 62. Kb8 {[%clk 0:02:37]} 62...
Qb7# {[%clk 0:01:10.5]} 0-1

[Event "*** Titled Tuesday 3|2 Blitz"]
[Site "Chess.com"]
[Date "2016.05.03"]
[Round "6"]
[White "Zlatan56"]
[Black "KuzubovYuriy"]
[Result "0-1"]
[WhiteElo "2573"]
[BlackElo "2612"]
[TimeControl "180+2"]
[EndTime "12:13:51 PDT"]
[Termination "KuzubovYuriy won by resignation"]

1. g3 {[%clk 0:03:01.9]} 1... d5 {[%clk 0:03:00.5]} 2. Bg2 {[%clk 0:03:02.2]}
2... Nf6 {[%clk 0:03:01.6]} 3. Nf3 {[%clk 0:03:02.1]} 3... c6 {[%clk 0:03:02.8]}
4. O-O {[%clk 0:03:03.2]} 4... Bg4 {[%clk 0:03:03.7]} 5. c4 {[%clk 0:03:04.3]}
5... Bxf3 {[%clk 0:03:04.5]} 6. Bxf3 {[%clk 0:03:04.4]} 6... e6 {[%clk
0:03:05.4]} 7. d3 {[%clk 0:02:58.6]} 7... Be7 {[%clk 0:03:05.4]} 8. Nc3 {[%clk
0:02:57.6]} 8... O-O {[%clk 0:03:06.3]} 9. Bg2 {[%clk 0:02:52.9]} 9... Nbd7
{[%clk 0:03:00.2]} 10. cxd5 {[%clk 0:02:51.2]} 10... cxd5 {[%clk 0:03:01.1]} 11.
e4 {[%clk 0:02:46.1]} 11... d4 {[%clk 0:02:45.8]} 12. Ne2 {[%clk 0:02:43.9]}
12... e5 {[%clk 0:02:46.9]} 13. f4 {[%clk 0:02:44]} 13... Rc8 {[%clk 0:02:34.5]}
14. h3 {[%clk 0:02:42.4]} 14... Nc5 {[%clk 0:02:25.5]} 15. g4 {[%clk 0:02:39]}
15... Nfd7 {[%clk 0:02:23.7]} 16. Ng3 {[%clk 0:02:36.2]} 16... exf4 {[%clk
0:02:18.8]} 17. Bxf4 {[%clk 0:02:33.6]} 17... Ne6 {[%clk 0:02:16.8]} 18. Bd2
{[%clk 0:02:32.4]} 18... Bg5 {[%clk 0:02:11.3]} 19. Nf5 {[%clk 0:02:32.1]} 19...
Bxd2 {[%clk 0:02:06.7]} 20. Qxd2 {[%clk 0:02:32.7]} 20... Ne5 {[%clk 0:02:06.8]}
21. Rac1 {[%clk 0:02:25]} 21... Rxc1 {[%clk 0:02:06.9]} 22. Rxc1 {[%clk
0:02:24.7]} 22... g6 {[%clk 0:02:07.9]} 23. Ng3 {[%clk 0:02:09.9]} 23... Qd7
{[%clk 0:01:59.5]} 24. Kh1 {[%clk 0:01:57.8]} 24... Rc8 {[%clk 0:01:58.6]} 25.
Rf1 {[%clk 0:01:58]} 25... Qc7 {[%clk 0:01:56.5]} 26. Nf5 {[%clk 0:01:53.4]}
26... gxf5 {[%clk 0:01:28.2]} 27. gxf5 {[%clk 0:01:52.2]} 27... Qc2 {[%clk
0:00:54]} 28. Qh6 {[%clk 0:01:50.7]} 28... Ng7 {[%clk 0:00:53.4]} 29. f6 {[%clk
0:01:38.2]} 29... Ne6 {[%clk 0:00:54]} 30. Kh2 {[%clk 0:01:38.3]} 30... Qxd3
{[%clk 0:00:50.5]} 31. Rf5 {[%clk 0:01:34.8]} 31... Qe3 {[%clk 0:00:46.9]} 32.
Qh4 {[%clk 0:01:19.4]} 32... Ng6 {[%clk 0:00:44]} 33. Qg4 {[%clk 0:01:10.7]}
33... d3 {[%clk 0:00:40.1]} 34. Re5 {[%clk 0:01:06.5]} 34... Qf4+ {[%clk
0:00:39.6]} 0-1

[Event "*** Titled Tuesday 3|2 Blitz"]
[Site "Chess.com"]
[Date "2016.05.03"]
[Round "6"]
[White "Iball95"]
[Black "KyronGriffith"]
[Result "1-0"]
[WhiteElo "2494"]
[BlackElo "2310"]
[TimeControl "180+2"]
[EndTime "12:14:04 PDT"]
[Termination "Iball95 won by resignation"]

1. e4 {[%clk 0:03:01.9]} 1... c5 {[%clk 0:03:00.4]} 2. Nf3 {[%clk 0:03:02.9]}
2... e6 {[%clk 0:03:00.4]} 3. g3 {[%clk 0:03:03.3]} 3... Nc6 {[%clk 0:02:58.9]}
4. Bg2 {[%clk 0:03:04.6]} 4... g6 {[%clk 0:02:59.8]} 5. d4 {[%clk 0:03:03.8]}
5... cxd4 {[%clk 0:02:59.6]} 6. Nxd4 {[%clk 0:03:05.7]} 6... Bg7 {[%clk
0:02:59.9]} 7. Nb5 {[%clk 0:03:05.4]} 7... Qa5+ {[%clk 0:02:40.8]} 8. N1c3
{[%clk 0:03:01]} 8... Bxc3+ {[%clk 0:02:41.3]} 9. Nxc3 {[%clk 0:03:01.4]} 9...
a6 {[%clk 0:02:27.5]} 10. O-O {[%clk 0:03:01.3]} 10... Nge7 {[%clk 0:02:20.2]}
11. Bh6 {[%clk 0:02:58.9]} 11... b6 {[%clk 0:02:08.2]} 12. Re1 {[%clk 0:02:58]}
12... Bb7 {[%clk 0:02:07.9]} 13. Nd5 {[%clk 0:02:47.5]} 13... O-O-O {[%clk
0:01:45.3]} 14. Bd2 {[%clk 0:02:41.1]} 14... Qb5 {[%clk 0:01:28.3]} 15. c4
{[%clk 0:01:50.4]} 15... Qxb2 {[%clk 0:01:25.4]} 16. Rb1 {[%clk 0:01:51.3]}
16... Qxa2 {[%clk 0:01:22.1]} 17. Nxb6+ {[%clk 0:01:52.5]} 17... Kc7 {[%clk
0:01:09.6]} 18. Bf4+ {[%clk 0:01:49.6]} 18... e5 {[%clk 0:01:07.9]} 19. Be3
{[%clk 0:01:50.3]} 19... d6 {[%clk 0:00:28.3]} 20. Nd5+ {[%clk 0:01:25.7]} 20...
Nxd5 {[%clk 0:00:21.9]} 21. cxd5 {[%clk 0:01:27.6]} 21... Nd4 {[%clk 0:00:19.5]}
22. Bxd4 {[%clk 0:01:28.5]} 22... exd4 {[%clk 0:00:21.4]} 23. Qxd4 {[%clk
0:01:29.8]} 23... Rb8 {[%clk 0:00:20.7]} 24. Rbc1+ {[%clk 0:01:29]} 24... Kd7
{[%clk 0:00:21.5]} 25. Bh3+ {[%clk 0:01:29.6]} 25... Ke7 {[%clk 0:00:20]} 26. e5
{[%clk 0:01:29.9]} 26... Kf8 {[%clk 0:00:06.5]} 27. e6 {[%clk 0:01:22.7]} 27...
Rg8 {[%clk 0:00:04.9]} 28. e7+ {[%clk 0:01:17.9]} 28... Ke8 {[%clk 0:00:06.1]}
29. Rc7 {[%clk 0:01:17.4]} 29... Bc8 {[%clk 0:00:05.2]} 30. Bxc8 {[%clk
0:01:17.2]} 1-0